bitfinex-derivatives/quotes_BTCF0:USTF0_20241231
["timestamp","ask_amount","ask_price","bid_price","bid_amount"]
[1735648316098,0.052744,94953.0,94940.0,0.10719886]
[1735648316499,0.001,94950.0,94945.0,0.001]
[1735648316996,0.001,94950.0,94940.0,0.16094986]
[1735648317191,0.001,94950.0,94941.0,0.05275]
[1735648317585,0.052742,94957.0,94945.0,0.001]
[1735648317782,0.001,94950.0,94945.0,0.001]
[1735648319094,0.001,94950.0,94943.0,0.034749]
[1735648319495,0.001,94950.0,94940.0,0.10719886]
[1735648319693,0.001,94950.0,94945.0,0.052748]
[1735648321502,0.001,94950.0,94945.0,0.053748]
[1735648321701,0.001,94950.0,94949.0,0.052746]
[1735648322503,0.052735,94969.0,94946.0,0.4393]
[1735648322807,0.052732,94976.0,94961.0,0.052739]
[1735648323002,0.052732,94976.0,94962.0,0.052739]
[1735648323203,0.07266448,94980.0,94959.0,0.10719886]
[1735648323498,0.01993548,94980.0,94964.0,0.052737]
[1735648323806,0.052732,94975.0,94964.0,0.052737]
[1735648324104,0.01993548,94980.0,94964.0,0.033737]
[1735648324292,0.1558,94981.0,94959.0,0.10719886]
[1735648324293,0.05273,94979.0,94959.0,0.10719886]
[1735648324490,0.01993548,94980.0,94965.0,0.052737]
[1735648324800,0.10719886,94980.0,94964.0,0.009]
[1735648325102,0.052736,94968.0,94964.0,0.009]
[1735648325601,0.052736,94968.0,94962.0,0.009]
[1735648326300,0.3608,94965.0,94962.0,0.009]
[1735648326504,0.0732,94964.0,94959.0,0.06174]
[1735648326695,0.0732,94964.0,94963.0,0.052738]
[1735648327295,0.0732,94964.0,94962.0,0.001]
[1735648327988,0.0732,94964.0,94963.0,0.002]
[1735648328601,0.5503867,94973.0,94963.0,0.002]
[1735648328801,0.60255969,94973.0,94963.0,0.001]
[1735648329309,0.052734,94971.0,94963.0,0.001]
[1735648329609,0.052735,94970.0,94962.0,0.001]
[1735648329801,0.001,94964.0,94962.0,0.002]
[1735648330307,0.052735,94970.0,94963.0,0.009]
[1735648330502,0.052735,94970.0,94963.0,0.01]
[1735648330906,0.052735,94970.0,94963.0,0.001]
[1735648331210,0.001,94964.0,94962.0,0.001]
[1735648331413,0.001,94964.0,94962.0,0.002]
[1735648331719,0.052738,94963.0,94962.0,0.001]
[1735648331930,0.052743,94956.0,94954.0,0.3608]
[1735648332111,0.052743,94955.0,94954.0,0.3608]
[1735648332613,0.052739,94962.0,94947.0,0.05363807]
[1735648332918,0.052745,94952.0,94946.0,0.3608]
[1735648333121,0.64282669,94963.0,94946.0,0.3608]
[1735648333423,0.39556469,94963.0,94962.0,0.001]
[1735648333619,0.75636469,94963.0,94962.0,0.001]
[1735648333807,0.567338,94963.0,94943.0,0.05256172]
[1735648334115,0.413546,94950.0,94943.0,0.034749]
[1735648334315,0.413546,94950.0,94940.0,0.10719886]
[1735648334511,0.413546,94950.0,94945.0,0.052748]
[1735648335320,0.413546,94950.0,94940.0,0.10719886]
[1735648335621,0.3608,94950.0,94945.0,0.052748]
[1735648335821,0.3608,94950.0,94940.0,0.16012513]
[1735648336021,0.052746,94949.0,94940.0,0.21287613]
[1735648336219,0.052746,94949.0,94940.0,0.16012513]
[1735648336422,0.052746,94949.0,94943.0,0.001]
[1735648336822,0.003,94950.0,94943.0,0.053749]
[1735648337024,0.003,94950.0,94948.0,0.052747]
[1735648337223,0.003,94950.0,94949.0,0.413546]
[1735648337419,0.002,94950.0,94949.0,0.413546]
[1735648337616,0.4383,94962.0,94949.0,0.3608]
[1735648337816,0.4383,94962.0,94952.0,0.052744]
[1735648338016,0.4383,94962.0,94950.0,0.49719886]
[1735648338320,0.4383,94962.0,94953.0,0.052744]
[1735648338514,0.491039,94962.0,94953.0,0.052744]
[1735648338724,0.413539,94962.0,94951.0,0.0794]
[1735648338917,0.54969301,94971.0,94951.0,0.0794]
[1735648339120,0.052738,94965.0,94955.0,0.052742]
[1735648340212,0.002,94962.0,94952.0,0.001]
[1735648340412,0.003,94962.0,94958.0,0.3608]
[1735648340819,0.001,94962.0,94958.0,0.3608]
[1735648341327,0.052738,94964.0,94958.0,0.3608]
[1735648341921,0.003,94965.0,94963.0,0.052738]
[1735648342230,0.001,94962.0,94961.0,0.052739]
[1735648343029,0.001,94962.0,94958.0,0.3608]
[1735648343431,0.003,94962.0,94958.0,0.3608]
[1735648343723,0.002,94962.0,94958.0,0.41484834]
[1735648344319,0.002,94962.0,94961.0,0.001]
[1735648344923,0.002,94962.0,94958.0,0.41584834]
[1735648345127,0.002,94962.0,94958.0,0.03604834]
[1735648345324,0.003,94962.0,94958.0,0.03604834]
[1735648345526,0.001,94962.0,94950.0,0.10719886]
[1735648345722,0.052741,94958.0,94950.0,0.10719886]
[1735648346229,0.052741,94958.0,94950.0,0.18049886]
[1735648346430,0.055739,94962.0,94950.0,0.23429395]
[1735648346931,0.003,94962.0,94951.0,0.0716]
[1735648347228,0.18950193,94956.0,94951.0,0.0716]
[1735648347818,0.19050193,94958.0,94951.0,0.0716]
[1735648348323,0.18950193,94958.0,94951.0,0.0716]
[1735648348528,0.18950193,94958.0,94952.0,0.073]
[1735648348724,0.002,94956.0,94952.0,0.073]
[1735648349326,0.002,94956.0,94953.0,0.052744]
[1735648349636,0.002,94956.0,94952.0,0.073]
[1735648349637,0.002,94956.0,94954.0,0.052743]
[1735648349826,0.002,94956.0,94954.0,0.033743]
[1735648350224,0.002,94956.0,94952.0,0.073]
[1735648350522,0.003,94958.0,94955.0,0.052743]
[1735648351122,0.002,94956.0,94955.0,0.052743]
[1735648351330,0.003,94956.0,94955.0,0.052743]
[1735648351717,0.001,94956.0,94955.0,0.053743]
[1735648352230,0.003,94958.0,94957.0,0.052742]
[1735648352430,0.001,94958.0,94957.0,0.052742]
[1735648354233,0.003,94958.0,94957.0,0.034742]
[1735648354438,0.002,94958.0,94957.0,0.034742]
[1735648355426,0.00307173,94958.0,94957.0,0.034742]
[1735648356226,0.00307173,94958.0,94957.0,0.001]
[1735648357226,0.00307173,94958.0,94957.0,0.053742]
[1735648357629,0.02125937,94976.0,94957.0,0.053742]
[1735648357838,0.02125937,94976.0,94966.0,0.46799886]
[1735648358038,0.3608,94977.0,94966.0,0.46799886]
[1735648358833,0.003,94976.0,94966.0,0.46799886]
[1735648359028,0.003,94976.0,94966.0,0.50173486]
[1735648359333,0.003,94976.0,94967.0,0.052736]
[1735648359537,0.003,94976.0,94974.0,0.3608]
[1735648359837,0.003,94976.0,94967.0,0.052736]
[1735648360229,0.003,94976.0,94966.0,0.50230837]
[1735648360431,0.3608,94983.0,94966.0,0.50138837]
[1735648360638,0.3608,94983.0,94966.0,0.50238837]
[1735648360830,0.052729,94980.0,94966.0,0.50238837]
[1735648361031,0.052729,94980.0,94966.0,0.50138837]
[1735648361231,0.3608,94983.0,94967.0,0.001]
[1735648361428,0.052728,94982.0,94967.0,0.001]
[1735648361634,0.052729,94980.0,94967.0,0.001]
[1735648361831,0.3608,94983.0,94966.0,0.50326837]
[1735648362235,0.052732,94976.0,94966.0,0.50238837]
[1735648362437,0.052733,94974.0,94966.0,0.50238837]
[1735648363038,0.052733,94972.0,94966.0,0.50238837]
[1735648363547,0.052733,94972.0,94967.0,0.001]
[1735648363739,0.1443,94975.0,94967.0,0.001]
[1735648364134,0.5051,94975.0,94966.0,0.48422837]
[1735648364334,0.5051,94975.0,94966.0,0.48438837]
[1735648364935,0.557832,94975.0,94967.0,0.001]
[1735648365544,0.5051,94975.0,94966.0,0.53804437]
[1735648365734,0.5051,94975.0,94966.0,0.53712437]
[1735648366054,0.3608,94975.0,94968.0,0.052735]
[1735648366232,0.3608,94975.0,94970.0,0.052734]
[1735648367335,0.3618,94975.0,94970.0,0.052734]
[1735648367747,0.3608,94975.0,94970.0,0.052734]
[1735648367942,0.3608,94975.0,94970.0,0.053734]
[1735648367943,0.3628,94975.0,94970.0,0.053734]
[1735648368449,0.3608,94975.0,94970.0,0.052734]
[1735648368649,0.3628,94975.0,94970.0,0.053734]
[1735648369040,0.3628,94975.0,94970.0,0.034734]
[1735648370149,0.3628,94975.0,94972.0,0.052733]
[1735648371652,0.3618,94975.0,94972.0,0.053733]
[1735648373843,0.3618,94975.0,94972.0,0.001]
[1735648374048,0.3618,94975.0,94966.0,0.46622837]
[1735648374254,0.3618,94975.0,94966.0,0.46538837]
[1735648374555,0.3618,94975.0,94968.0,0.052735]
[1735648375143,0.3608,94975.0,94968.0,0.052735]
[1735648375349,0.3618,94975.0,94968.0,0.052735]
[1735648376947,0.3628,94975.0,94968.0,0.053735]
[1735648377147,0.002,94975.0,94968.0,0.053735]
[1735648378456,0.002,94975.0,94968.0,0.001]
[1735648379046,0.002,94975.0,94967.0,0.034736]
[1735648379548,0.002,94975.0,94966.0,0.35818951]
[1735648379549,0.002,94975.0,94968.0,0.052736]
[1735648381255,0.002,94975.0,94968.0,0.053736]
[1735648383768,0.41408801,94982.0,94968.0,0.052736]
[1735648383948,0.18969946,94974.0,94968.0,0.052736]
[1735648384144,0.18969946,94974.0,94968.0,0.033736]
[1735648384560,0.18969946,94974.0,94973.0,0.052733]
[1735648385158,0.18969946,94974.0,94973.0,0.442733]
[1735648385561,0.004,94982.0,94979.0,0.052729]
[1735648385861,0.004,94982.0,94980.0,0.3608]
[1735648386061,0.004,94982.0,94981.0,0.052728]
[1735648386551,0.18969946,94983.0,94981.0,0.052728]
[1735648386751,0.00157982,94984.0,94980.0,0.3608]
[1735648386949,0.052728,94981.0,94980.0,0.3608]
[1735648387759,0.14557728,94981.0,94980.0,0.3608]
[1735648388152,0.45364928,94981.0,94966.0,0.35818951]
[1735648388650,0.052734,94971.0,94966.0,0.35818951]
[1735648388851,0.052736,94967.0,94966.0,0.35818951]
[1735648389061,0.052736,94967.0,94966.0,0.33918951]
[1735648390148,0.052736,94967.0,94966.0,0.05238951]
[1735648390350,0.3608,94972.0,94960.0,0.00157951]
[1735648390551,0.052739,94961.0,94960.0,0.00157951]
[1735648392251,0.075,94965.0,94960.0,0.05360241]
[1735648392461,0.075,94965.0,94960.0,0.00157951]
[1735648393766,0.002,94961.0,94960.0,0.00157951]
[1735648394170,0.002,94961.0,94956.0,0.34337951]
[1735648394864,0.077,94965.0,94956.0,0.34337951]
[1735648395458,0.077,94965.0,94956.0,0.39639951]
[1735648396663,0.075,94965.0,94956.0,0.39639951]
[1735648399172,0.075,94965.0,94956.0,0.37739951]
[1735648402371,0.052739,94963.0,94956.0,0.37739951]
[1735648402683,0.052742,94957.0,94956.0,0.05302]
[1735648402869,0.052744,94954.0,94939.0,0.18690706]
[1735648403063,0.3608,94951.0,94939.0,0.18690706]
[1735648403465,0.3608,94951.0,94939.0,0.23965806]
[1735648403672,0.3608,94951.0,94947.0,0.052747]
[1735648403866,0.3608,94951.0,94943.0,0.413549]
[1735648404266,0.3608,94951.0,94943.0,0.3608]
[1735648404873,0.3608,94951.0,94943.0,0.3628]
[1735648405073,0.052744,94953.0,94943.0,0.3628]
[1735648405273,0.052744,94953.0,94943.0,0.3438]
[1735648405673,0.052739,94961.0,94943.0,0.3438]
[1735648405977,0.052743,94955.0,94943.0,0.3438]
[1735648406172,0.3608,94963.0,94943.0,0.3438]
[1735648406375,0.052745,94951.0,94943.0,0.3438]
[1735648406581,0.052746,94950.0,94943.0,0.3438]
[1735648406874,0.052746,94950.0,94943.0,0.3488]
[1735648408277,0.052743,94954.0,94943.0,0.3488]
[1735648409077,0.052744,94953.0,94943.0,0.3298]
[1735648409279,0.052745,94952.0,94943.0,0.3298]
[1735648411070,0.052745,94952.0,94943.0,0.3278]
[1735648411271,0.052745,94952.0,94943.0,0.3298]
[1735648411877,0.052745,94952.0,94943.0,0.3278]
[1735648412179,0.052745,94952.0,94943.0,0.3298]
[1735648412777,0.052743,94955.0,94943.0,0.3298]
[1735648413079,0.052745,94952.0,94943.0,0.3298]
[1735648413780,0.052748,94946.0,94943.0,0.3298]
[1735648414187,0.3608,94951.0,94943.0,0.3108]
[1735648414378,0.052746,94950.0,94943.0,0.3108]
[1735648414972,0.3608,94951.0,94943.0,0.3108]
[1735648415171,0.052749,94945.0,94943.0,0.3108]
[1735648415377,0.052747,94948.0,94943.0,0.3108]
[1735648415672,0.052747,94947.0,94943.0,0.3108]
[1735648415969,0.052748,94946.0,94943.0,0.3108]
[1735648417382,0.125846,94949.0,94943.0,0.3108]
[1735648417698,0.052747,94948.0,94943.0,0.3108]
[1735648418782,0.052749,94944.0,94943.0,0.005]
[1735648419079,0.148,94947.0,94939.0,0.04150991]
[1735648419270,0.148,94947.0,94937.0,0.00157982]
[1735648419469,0.052752,94938.0,94937.0,0.00157982]
[1735648420673,0.052761,94923.0,94922.0,0.18690706]
[1735648420888,0.052753,94937.0,94918.0,0.18690706]
[1735648420889,0.052763,94919.0,94918.0,0.18690706]
[1735648421482,0.27496,94924.0,94918.0,0.18690706]
[1735648421683,0.001,94938.0,94927.0,0.052758]
[1735648421982,0.001,94938.0,94937.0,0.413553]
[1735648422373,0.001,94938.0,94937.0,0.42654905]
[1735648422580,0.21955127,94962.0,94956.0,0.052742]
[1735648422779,0.21955127,94962.0,94956.0,0.774342]
[1735648422981,0.20282559,94962.0,94961.0,0.052739]
[1735648423177,0.20282559,94962.0,94961.0,0.06573505]
[1735648423178,0.14933635,94962.0,94961.0,0.06573505]
[1735648423383,0.24584217,94969.0,94968.0,0.052736]
[1735648423589,0.24193936,94969.0,94968.0,0.413536]
[1735648423785,0.18929147,94994.0,94968.0,0.3608]
[1735648423987,0.0015,94988.0,94983.0,0.3608]
[1735648424184,0.0015,94988.0,94983.0,0.3418]
[1735648424579,0.0015,94988.0,94973.0,0.052733]
[1735648424778,0.007,94969.0,94968.0,0.46683815]
[1735648425283,0.00157982,94987.0,94968.0,0.41310215]
[1735648425483,0.00857982,94987.0,94983.0,0.001]
[1735648425684,0.00957982,94987.0,94983.0,0.001]
[1735648426790,0.00957982,94987.0,94985.0,0.052726]
[1735648427088,0.00257982,94987.0,94980.0,0.052729]
[1735648427287,0.0757,94986.0,94980.0,0.052729]
[1735648427679,0.0757,94986.0,94977.0,0.10665761]
[1735648427883,0.0757,94986.0,94983.0,0.001]
[1735648428391,0.0757,94986.0,94977.0,0.10665761]
[1735648428392,0.3608,94984.0,94977.0,0.10665761]
[1735648428578,0.052729,94981.0,94980.0,0.001]
[1735648428986,0.052727,94983.0,94966.0,0.3608]
[1735648429184,0.052735,94970.0,94966.0,0.3418]
[1735648429691,0.052732,94974.0,94966.0,0.3418]
[1735648429883,0.3608,94976.0,94966.0,0.3418]
[1735648430086,0.052733,94973.0,94966.0,0.3418]
[1735648431490,0.058733,94973.0,94966.0,0.3418]
[1735648432086,0.0733,94972.0,94966.0,0.3418]
[1735648432681,0.0733,94972.0,94968.0,0.052736]
[1735648432991,0.126034,94972.0,94966.0,0.3418]
[1735648433193,0.052735,94970.0,94966.0,0.3418]
[1735648433994,0.3608,94967.0,94945.0,0.3608]
[1735648434295,0.052742,94957.0,94949.0,0.052746]
[1735648434486,0.052742,94957.0,94947.0,0.10665761]
[1735648434686,0.052742,94957.0,94948.0,0.052746]
[1735648434879,0.3608,94967.0,94948.0,0.052746]
[1735648435293,0.052741,94958.0,94948.0,0.052746]
[1735648436092,0.3618,94967.0,94945.0,0.4127474]
[1735648436290,0.052742,94957.0,94945.0,0.4127474]
[1735648436489,0.3618,94967.0,94945.0,0.4127474]
[1735648436787,0.052743,94955.0,94945.0,0.4127474]
[1735648436985,0.052743,94955.0,94948.0,0.003]
[1735648437184,0.052743,94954.0,94948.0,0.003]
[1735648437484,0.052743,94954.0,94948.0,0.001]
[1735648437694,0.052743,94954.0,94945.0,0.4187474]
[1735648438083,0.3608,94967.0,94948.0,0.002]
[1735648438386,0.052745,94951.0,94948.0,0.002]
[1735648438589,0.3608,94958.0,94945.0,0.4147474]
[1735648438795,0.052746,94949.0,94948.0,0.002]
[1735648439887,0.052746,94949.0,94948.0,0.003]
[1735648440290,0.052746,94949.0,94948.0,0.001]
[1735648440488,0.052746,94949.0,94948.0,0.003]
[1735648441598,0.413546,94949.0,94948.0,0.003]
[1735648441796,0.413546,94949.0,94948.0,0.002]
[1735648441997,0.414546,94949.0,94948.0,0.002]
[1735648442587,0.052754,94934.0,94926.0,0.3608]
[1735648443989,0.052754,94934.0,94933.0,0.00458014]
[1735648444199,0.052754,94934.0,94926.0,0.40366707]
[1735648444401,0.052754,94934.0,94926.0,0.45642607]
[1735648444590,0.3608,94936.0,94931.0,0.052756]
[1735648445088,0.3608,94936.0,94933.0,0.001]
[1735648445285,0.3608,94936.0,94933.0,0.003]
[1735648446589,0.3608,94936.0,94933.0,0.002]
[1735648446992,0.052754,94934.0,94931.0,0.001]
[1735648447192,0.052754,94934.0,94931.0,0.003]
[1735648447400,0.052754,94934.0,94931.0,0.002]
[1735648447711,0.052754,94934.0,94933.0,0.002]
[1735648448298,0.3608,94936.0,94931.0,0.001]
[1735648448500,0.052756,94932.0,94931.0,0.003]
[1735648449095,0.3608,94936.0,94926.0,0.38766707]
[1735648449293,0.052758,94927.0,94926.0,0.38766707]
[1735648450493,0.052758,94927.0,94926.0,0.05228693]
[1735648450693,0.052758,94927.0,94926.0,0.005]
[1735648450899,0.052758,94927.0,94926.0,0.007]
[1735648451107,0.3608,94936.0,94926.0,0.3678]
[1735648451296,0.413553,94936.0,94926.0,0.47445761]
[1735648451694,0.413553,94936.0,94927.0,0.39]
[1735648451894,0.052755,94933.0,94926.0,0.36864]
[1735648452201,0.004,94927.0,94926.0,0.3628]
[1735648452903,0.005,94927.0,94926.0,0.3608]
[1735648453102,0.052761,94923.0,94917.0,0.41229522]
[1735648453296,0.005,94927.0,94917.0,0.51895283]
[1735648453497,0.057759,94927.0,94917.0,0.51895283]
[1735648453694,0.001,94927.0,94917.0,0.05149522]
[1735648453897,0.001,94927.0,94912.0,0.47474016]
[1735648454093,0.417554,94936.0,94912.0,0.47474016]
[1735648454094,0.052756,94932.0,94912.0,0.45486016]
[1735648454299,0.3608,94925.0,94917.0,0.001]
[1735648454704,0.052763,94919.0,94917.0,0.002]
[1735648454905,0.052763,94918.0,94917.0,0.002]
[1735648455102,0.052763,94918.0,94917.0,0.001]
[1735648456106,0.052763,94918.0,94912.0,0.5136255]
[1735648456304,0.3608,94925.0,94912.0,0.5127855]
[1735648456604,0.052764,94917.0,94912.0,0.5127855]
[1735648456910,0.052765,94916.0,94912.0,0.5077855]
[1735648457500,0.052765,94916.0,94912.0,0.5107855]
[1735648457810,0.052765,94916.0,94912.0,0.5127855]
[1735648457993,0.052762,94921.0,94912.0,0.5097855]
[1735648458197,0.3608,94925.0,94912.0,0.5127855]
[1735648458399,0.052763,94918.0,94912.0,0.5127855]
[1735648458800,0.3608,94925.0,94912.0,0.5127855]
[1735648459201,0.052766,94913.0,94912.0,0.0595055]
[1735648459411,0.052766,94913.0,94912.0,0.00658016]
[1735648459805,0.052766,94913.0,94912.0,0.00358016]
[1735648459998,0.052766,94913.0,94912.0,0.00658016]
[1735648460608,0.052766,94913.0,94912.0,0.005]
[1735648461012,0.052766,94913.0,94912.0,0.004]
[1735648461305,0.052771,94905.0,94904.0,0.05378644]
[1735648461506,0.052771,94905.0,94893.0,0.3608]
[1735648461711,0.052771,94905.0,94893.0,0.4123938]
[1735648462004,0.052771,94905.0,94898.0,0.052774]
[1735648462411,0.052772,94903.0,94894.0,0.052777]
[1735648462615,0.10665761,94910.0,94894.0,0.052777]
[1735648462802,0.052773,94902.0,94893.0,0.4123938]
[1735648463002,0.052766,94913.0,94904.0,0.002]
[1735648463311,0.413571,94905.0,94904.0,0.002]
[1735648463515,0.052771,94904.0,94893.0,0.4123938]
[1735648463712,0.052776,94895.0,94894.0,0.007]
[1735648464305,0.052776,94895.0,94893.0,0.003]
[1735648464306,0.052777,94894.0,94893.0,0.003]
[1735648464811,0.052785,94879.0,94871.0,0.23896913]
[1735648465001,0.052785,94879.0,94872.0,0.05409704]
[1735648465202,0.052785,94879.0,94872.0,0.052789]
[1735648465408,0.052782,94884.0,94874.0,0.052788]
[1735648465707,0.3608,94885.0,94871.0,0.23860788]
[1735648465908,0.3608,94905.0,94879.0,0.3608]
[1735648466106,0.12089021,94942.0,94871.0,0.23860788]
[1735648466107,0.3608,94916.0,94894.0,0.004]
[1735648466309,0.05277,94906.0,94900.0,0.3608]
[1735648466503,0.052771,94905.0,94900.0,0.3608]
[1735648466704,0.052771,94905.0,94891.0,0.052778]
[1735648466904,0.3608,94908.0,94891.0,0.052778]
[1735648467105,0.052772,94903.0,94891.0,0.052778]
[1735648467304,0.3608,94908.0,94890.0,0.3608]
[1735648467305,0.3608,94898.0,94890.0,0.3608]
[1735648467511,0.3608,94898.0,94894.0,0.001]
[1735648468019,0.052776,94895.0,94894.0,0.001]
[1735648468809,0.00010924,94895.0,94875.0,0.05323116]
[1735648469110,0.052782,94886.0,94871.0,0.394589]
[1735648469314,0.3608,94887.0,94873.0,0.052788]
[1735648469613,0.3608,94887.0,94869.0,0.18618013]
[1735648469810,0.052786,94877.0,94870.0,0.05279]
[1735648470014,0.052786,94877.0,94875.0,0.003]
[1735648470621,0.052787,94876.0,94873.0,0.004]
[1735648471216,0.052788,94874.0,94873.0,0.004]
[1735648472429,0.3608,94878.0,94866.0,0.47252]
[1735648472430,0.052792,94867.0,94866.0,0.47252]
[1735648472927,0.052792,94867.0,94857.0,0.052797]
[1735648472928,0.052796,94860.0,94854.0,0.00158133]
[1735648473121,0.3608,94868.0,94854.0,0.00158133]
[1735648473319,0.052798,94855.0,94854.0,0.00158133]
[1735648473922,0.00010924,94855.0,94854.0,0.00158133]
[1735648474125,0.3608,94878.0,94854.0,0.00158133]
[1735648474326,0.413586,94878.0,94867.0,0.052791]
[1735648474532,0.00010902,94877.0,94867.0,0.052791]
[1735648474722,9.645e-05,94876.0,94866.0,0.3608]
[1735648474923,0.00010234,94875.0,94866.0,0.52024961]
[1735648475126,0.36140001,94878.0,94867.0,0.052791]
[1735648475331,0.052786,94877.0,94867.0,0.052791]
[1735648475533,0.052787,94876.0,94867.0,0.052791]
[1735648475731,0.052787,94876.0,94868.0,0.39]
[1735648476232,0.052787,94876.0,94867.0,0.052791]
[1735648476431,0.413571,94896.0,94884.0,0.052777]
[1735648476631,0.36140001,94896.0,94884.0,0.3608]
[1735648476834,0.36140001,94896.0,94889.0,0.052774]
[1735648477423,0.00060001,94896.0,94892.0,0.413573]
[1735648477636,0.3608,94920.0,94892.0,0.413573]
[1735648477826,0.0025814,94893.0,94892.0,0.413573]
[1735648478538,0.00158068,94931.0,94904.0,0.10665761]
[1735648478727,0.00158068,94931.0,94926.0,0.3608]
[1735648479128,0.00158068,94931.0,94930.0,0.033752]
[1735648479832,0.00168305,94931.0,94930.0,0.033752]
[1735648480140,0.00158068,94931.0,94930.0,0.033752]
[1735648480635,0.3608,94938.0,94930.0,0.033752]
[1735648480836,0.003,94931.0,94930.0,0.033752]
[1735648482831,0.3608,94938.0,94930.0,0.033752]
[1735648483027,0.004,94931.0,94930.0,0.033752]
[1735648483232,0.004,94931.0,94926.0,0.3608]
[1735648483737,0.005,94931.0,94926.0,0.3608]
[1735648484042,0.001,94931.0,94930.0,0.052752]
[1735648484241,0.001,94931.0,94930.0,0.033752]
[1735648484636,0.0755,94936.0,94931.0,0.05275]
[1735648484829,0.0755,94936.0,94928.0,0.3608]
[1735648484830,0.0755,94936.0,94932.0,0.05275]
[1735648485441,0.0755,94936.0,94928.0,0.3608]
[1735648486440,0.007,94931.0,94928.0,0.3608]
[1735648486632,9.942e-05,94930.0,94928.0,0.3608]
[1735648486835,0.007,94931.0,94928.0,0.3608]
[1735648487031,0.001,94931.0,94928.0,0.3608]
[1735648487541,0.0805,94936.0,94928.0,0.3608]
[1735648487731,0.001,94931.0,94928.0,0.3608]
[1735648488739,0.00010924,94930.0,94928.0,0.3608]
[1735648488944,0.001,94931.0,94928.0,0.3608]
[1735648489145,0.001,94931.0,94928.0,0.3418]
[1735648489648,0.001,94931.0,94930.0,0.052752]
[1735648489947,0.00310924,94931.0,94930.0,0.052752]
[1735648490447,0.00310924,94931.0,94929.0,0.0786]
[1735648490448,0.00710924,94931.0,94929.0,0.0786]
[1735648491149,0.004,94931.0,94929.0,0.0786]
[1735648491540,0.004,94931.0,94928.0,0.3418]
[1735648492843,0.002,94931.0,94929.0,0.005]
[1735648493240,0.002,94931.0,94928.0,0.3418]
[1735648493441,0.006,94931.0,94928.0,0.3418]
[1735648493848,0.002,94931.0,94928.0,0.3418]
[1735648494046,0.007,94931.0,94929.0,0.001]
[1735648494249,0.01,94931.0,94928.0,0.3238]
[1735648494640,0.008,94931.0,94928.0,0.3248]
[1735648494839,0.005,94931.0,94928.0,0.3248]
[1735648495048,0.007,94931.0,94928.0,0.3248]
[1735648495945,0.052752,94930.0,94928.0,0.3248]
[1735648496245,0.052752,94930.0,94929.0,0.001]
[1735648497058,0.054752,94930.0,94929.0,0.001]
[1735648497353,0.054752,94930.0,94928.0,0.3238]
[1735648497547,0.054752,94930.0,94928.0,0.3248]
[1735648497749,0.0103205,94946.0,94928.0,0.3248]
[1735648497951,0.003,94930.0,94928.0,0.3238]
[1735648498151,0.011,94930.0,94929.0,0.001]
[1735648498647,0.063752,94930.0,94929.0,0.001]
[1735648499045,0.011,94930.0,94928.0,0.3058]
[1735648499248,0.127652,94929.0,94928.0,0.3058]
[1735648499758,0.127652,94929.0,94928.0,0.3068]
[1735648500557,0.129652,94929.0,94928.0,0.3068]
[1735648500753,0.135652,94929.0,94928.0,0.3068]
[1735648501646,0.008,94929.0,94928.0,0.3068]
[1735648502352,0.060752,94929.0,94928.0,0.3068]
[1735648502560,0.060752,94929.0,94928.0,0.001]
[1735648504153,0.052754,94925.0,94920.0,0.08801762]
[1735648504453,0.008,94929.0,94918.0,0.47244]
[1735648504657,0.052758,94919.0,94918.0,0.47244]
[1735648504954,0.3608,94923.0,94913.0,0.3608]
[1735648505150,0.0709,94918.0,94903.0,0.3608]
[1735648505353,0.052764,94908.0,94903.0,0.3608]
[1735648505549,0.052766,94904.0,94903.0,0.3608]
[1735648506356,0.0755,94907.0,94897.0,0.3608]
[1735648506546,0.052767,94903.0,94897.0,0.3608]
[1735648506750,0.0709,94918.0,94897.0,0.3608]
[1735648506951,0.05276,94915.0,94909.0,0.052763]
[1735648507350,0.15703859,94911.0,94910.0,0.052762]
[1735648508457,0.052766,94904.0,94903.0,0.002]
[1735648509062,0.3608,94914.0,94898.0,0.04234966]
[1735648509267,0.3608,94914.0,94896.0,0.05154441]
[1735648509447,0.052772,94894.0,94890.0,0.47328]
[1735648509652,0.052772,94894.0,94890.0,0.47244]
[1735648509859,0.052777,94884.0,94883.0,0.3608]
[1735648510560,0.052778,94882.0,94881.0,0.18599408]
[1735648510863,0.3608,94890.0,94875.0,0.3608]
[1735648511161,0.052781,94878.0,94875.0,0.3608]
[1735648511861,0.001,94884.0,94875.0,0.3608]
[1735648512047,0.3608,94882.0,94870.0,0.18599408]
[1735648512253,0.3608,94874.0,94864.0,0.36164]
[1735648512447,0.052788,94865.0,94864.0,0.3608]
[1735648512857,0.052789,94863.0,94855.0,0.3608]
[1735648513962,0.3608,94865.0,94862.0,0.00358081]
[1735648514158,0.3608,94865.0,94855.0,0.34538081]
[1735648514361,0.46745761,94865.0,94849.0,0.3608]
[1735648514664,0.052797,94849.0,94848.0,0.3608]
[1735648514868,0.052797,94849.0,94830.0,0.10823932]
[1735648514869,0.052797,94848.0,94839.0,0.41423072]
[1735648515066,0.3608,94855.0,94839.0,0.3608]
[1735648515368,0.0528,94843.0,94839.0,0.3608]
[1735648515566,0.3608,94855.0,94839.0,0.3608]
[1735648515567,0.052802,94840.0,94839.0,0.3608]
[1735648515763,0.3608,94846.0,94830.0,0.00158171]
[1735648515965,0.052806,94832.0,94830.0,0.00158171]
[1735648517263,0.052806,94832.0,94830.0,0.00558171]